fUST/lending_fUST_20251212
["ID","MTS","AMOUNT","RATE_DAILY","PERIOD"]
[398300843,1765506703907,150.0,7.492e-05,2]
[398300844,1765506704325,150.0,7.818e-05,2]
[398300845,1765506704870,150.0,8.144e-05,2]
[398300846,1765506705134,150.0,8.469e-05,2]
[398300847,1765506774268,150.0,6.833e-05,2]
[398300848,1765506774683,150.0,7.158e-05,2]
[398300849,1765506775109,150.0,7.484e-05,2]
[398300850,1765506775585,150.0,7.809e-05,2]
[398300851,1765506775974,150.0,8.134e-05,2]
[398300852,1765506776419,117.80782785,8.46e-05,2]
[398300853,1765506776444,32.19217215,8.46e-05,2]
[398300854,1765506843054,150.0,7.574e-05,2]
[398300894,1765507832099,-255.49749186,0.00010746,2]
[398300895,1765507832112,-88.82479842,0.00010746,2]
[398300896,1765507832122,-543.4320808,0.00011003,2]
[398300897,1765507832132,-297.00562892,0.00011399,2]
[398300898,1765507832143,-2.99437108,0.00011399,2]
[398300899,1765507832153,-972.73536763,0.000114,2]
[398300924,1765507838083,-326.93934112,0.000114,2]
[398300926,1765507838097,-657.21733966,0.000114,2]
[398300929,1765507838109,-320.80769379,0.000114,2]
[398300931,1765507838122,-2047.98103264,0.000114,2]
[398300939,1765507838190,-5674.31922516,0.000114,2]
[398300941,1765507838202,-300.0,0.00011627,2]
[398300943,1765507838213,-300.0,0.00011627,2]
[398300945,1765507838224,-300.0,0.00011627,2]
[398300947,1765507838236,-300.0,0.00011627,2]
[398300950,1765507838247,-300.0,0.00011627,2]
[398300952,1765507838258,-300.0,0.00011627,2]
[398300954,1765507838269,-300.0,0.00011627,2]
[398300956,1765507838281,-300.0,0.00011627,2]
[398300958,1765507838304,-300.0,0.00011627,2]
[398300960,1765507838323,-300.0,0.00011627,2]
[398300962,1765507838339,-300.0,0.00011627,2]
[398300963,1765507838352,-300.0,0.00011627,2]
[398300964,1765507838363,-300.0,0.00011627,2]
[398300965,1765507838375,-300.0,0.00011627,2]
[398300966,1765507838387,-300.0,0.00011627,2]
[398300967,1765507838399,-398.427,0.00012168,2]
[398300968,1765507838411,-295.30641892,0.00012169,2]
[398300969,1765507838428,-151.46,0.00012289,2]
[398300970,1765507838440,-500.0,0.00012289,2]
[398300971,1765507838451,-185.87722037,0.00012289,2]
[398300972,1765507838464,-500.0,0.00012289,2]
[398300973,1765507838475,-500.0,0.00012289,2]
[398300974,1765507838486,-500.0,0.00012289,2]
[398300975,1765507838500,-500.0,0.00012289,2]
[398300976,1765507838513,-500.0,0.00012289,2]
[398300977,1765507838524,-500.0,0.00012289,2]
[398300978,1765507838536,-500.0,0.00012289,2]
[398300979,1765507838547,-500.0,0.00012289,2]
[398300980,1765507838558,-500.0,0.00012289,2]
[398300981,1765507838570,-500.0,0.00012289,2]
[398300982,1765507838582,-500.0,0.00012289,2]
[398300983,1765507838595,-500.0,0.00012289,2]
[398300984,1765507838607,-500.0,0.00012289,2]
[398300985,1765507838620,-500.0,0.00012289,2]
[398300987,1765507838633,-500.0,0.00012289,2]
[398300989,1765507838645,-500.0,0.00012289,2]
[398300991,1765507838656,-500.0,0.00012289,2]
[398300993,1765507838669,-480.7209541,0.00012289,2]
[398300996,1765507838681,-440.5,0.00012289,2]
[398300998,1765507838692,-500.0,0.00012289,2]
[398301000,1765507838703,-500.0,0.00012289,2]
[398301002,1765507838715,-500.0,0.00012289,2]
[398301004,1765507838726,-432.29293888,0.00012289,2]
[398301006,1765507838738,-293.08316249,0.00012289,2]
[398301008,1765507838749,-450.0,0.00012289,2]
[398301010,1765507838761,-6565.39486255,0.0001229,2]
[398301013,1765507838775,-5582.1560482,0.0001229,2]
[398301015,1765507838789,-17666.45151146,0.0001229,2]
[398301018,1765507838803,-11505.7156276,0.0001229,2]
[398301020,1765507838817,-6689.20264959,0.0001229,2]
[398301022,1765507838830,-1555.72035859,0.0001229,2]
[398301025,1765507838844,-279.10748082,0.0001229,2]
[398301027,1765507838857,-302.0,0.0001229,2]
[398301069,1765507840352,-398.076,0.0001229,2]
[398301074,1765507840454,-28053.01800284,0.0001229,2]
[398301083,1765507843167,-46382.73435712,0.0001229,2]
[398301085,1765507846142,-1521.34113669,0.0001229,2]
[398301086,1765507846153,-3124.55595651,0.0001229,2]
[398301088,1765507879826,150.0,6.607e-05,2]
[398301089,1765507880239,150.0,6.921e-05,2]
[398301090,1765507880631,150.0,7.236e-05,2]
[398301091,1765507881540,150.0,7.551e-05,2]
[398301092,1765507881904,150.0,7.865e-05,2]
[398301093,1765507882515,150.0,8.18e-05,2]
[398301094,1765507882772,150.0,8.494e-05,2]
[398301145,1765509032373,-193.3023336,0.00010398,2]
[398301146,1765509032382,-570.0,0.0001072,2]
[398301147,1765509032391,-40.75018892,0.00011338,2]
[398301148,1765509032423,-322.78565556,0.00011338,2]
[398301149,1765509032432,-50.35841144,0.00011338,2]
[398301150,1765509032442,-257.3066617,0.00011338,2]
[398301248,1765509038244,-612.45701632,0.00011338,2]
[398301250,1765509038298,-78.87791054,0.00011338,2]
[398301251,1765509038307,-10000.0,0.000116,2]
[398301252,1765509038316,-2470.95094176,0.00011783,2]
[398301253,1765509038325,-4951.38708139,0.00012189,2]
[398301254,1765509038337,-5508.53,0.00012189,2]
[398301263,1765509040558,-356.26512759,0.00011469,2]
[398301264,1765509040568,-2748.23118461,0.00012189,2]
[398301265,1765509040577,-500.0,0.00012189,2]
[398301266,1765509040586,-611.41366308,0.00012189,2]
[398301267,1765509040596,-194.69048668,0.00012189,2]
[398301268,1765509040605,-500.0,0.00012189,2]
[398301269,1765509040615,-500.0,0.00012189,2]
[398301270,1765509040624,-500.0,0.00012189,2]
[398301271,1765509040633,-500.0,0.00012189,2]
[398301272,1765509040642,-500.0,0.00012189,2]
[398301273,1765509040651,-500.0,0.00012189,2]
[398301274,1765509040660,-500.0,0.00012189,2]
[398301275,1765509040670,-500.0,0.00012189,2]
[398301276,1765509040679,-500.0,0.00012189,2]
[398301277,1765509040689,-235.63295468,0.00012189,2]
[398301278,1765509040699,-204.10373878,0.00012189,2]
[398301279,1765509040708,-500.0,0.00012189,2]
[398301280,1765509040717,-4533.24521389,0.0001219,2]
[398301329,1765509043682,-29674.85181998,0.0001219,2]
[398301334,1765509239284,150.0,6.621e-05,2]
[398301335,1765509239708,150.0,6.936e-05,2]
[398301336,1765509240117,150.0,7.251e-05,2]
[398301338,1765509305632,150.0,6.61e-05,2]
[398301339,1765509306045,150.0,6.924e-05,2]
[398301340,1765509371060,150.0,7.092e-05,2]
[398301341,1765509371459,150.0,7.43e-05,2]
[398301342,1765509371880,150.0,7.768e-05,2]
[398301343,1765509372292,150.0,8.106e-05,2]
[398301366,1765510232455,-300.0,0.00011599,2]
[398301367,1765510232465,-300.0,0.00011599,2]
[398301368,1765510232475,-14.35401849,0.00011599,2]
[398301388,1765510238524,-1185.64598151,0.00011599,2]
[398301389,1765510238533,-39.17668101,0.00011599,2]
[398301390,1765510238544,-540.61021453,0.00011599,2]
[398301391,1765510238557,-1057.43089812,0.00011599,2]
[398301392,1765510238568,-2969.78829896,0.00011599,2]
[398301393,1765510238580,-320.0,0.00011599,2]
[398301394,1765510238596,-169.99390738,0.00011599,2]
[398301395,1765510238606,-375.23982504,0.00011599,2]
[398301396,1765510238615,-10000.0,0.000116,2]
[398301397,1765510238626,-2470.95094176,0.00011823,2]
[398301398,1765510238635,-399.946,0.00011947,2]
[398301399,1765510238646,-151.0,0.00012083,2]
[398301400,1765510238655,-20920.21087849,0.00012089,2]
[398301401,1765510238665,-500.0,0.00012089,2]
[398301402,1765510238675,-500.0,0.00012089,2]
[398301403,1765510238684,-206.22273088,0.00012089,2]
[398301404,1765510238693,-500.0,0.00012089,2]
[398301405,1765510238703,-500.0,0.00012089,2]
[398301406,1765510238712,-500.0,0.00012089,2]
[398301407,1765510238722,-500.0,0.00012089,2]
[398301408,1765510238731,-500.0,0.00012089,2]
[398301409,1765510238741,-203.65558826,0.00012089,2]
[398301410,1765510238751,-500.0,0.00012089,2]
[398301411,1765510238760,-179.47190292,0.00012089,2]
[398301412,1765510238769,-607190.992724,0.0001209,2]
[398301413,1765510238782,-8246.18349024,0.0001209,2]
[398301414,1765510238793,-3520.04,0.0001209,2]
[398301415,1765510238805,-1031.999995,0.0001209,2]
[398301416,1765510238825,-1181.34538107,0.0001209,2]
[398301417,1765510238837,-504.32018305,0.0001209,2]
[398301437,1765510240704,-3864.24299833,0.0001209,2]
[398301443,1765510244191,-590.13163626,0.0001209,2]
[398301453,1765510246735,-4283.88396737,0.0001209,2]
[398301454,1765510273922,150.0,6.977e-05,2]
[398301455,1765510338858,150.0,6.891e-05,2]
[398301457,1765510339282,150.0,7.219e-05,2]
[398301470,1765511431626,-561.0,0.00010087,2]
[398301471,1765511431636,-155.91296225,0.00010087,2]
[398301472,1765511431646,-166.32803068,0.00010087,2]
[398301473,1765511431656,-388.13502854,0.0001084,2]
[398301474,1765511431669,-999.0,0.00010959,2]
[398301475,1765511431678,-99.62397853,0.00011005,2]
[398301506,1765511437631,-266.13896107,0.00011005,2]
[398301507,1765511437640,-479.06294164,0.00011289,2]
[398301508,1765511437693,-720.93705836,0.00011289,2]
[398301509,1765511437703,-300.0,0.00011289,2]
[398301510,1765511437712,-500.0,0.0001129,2]
[398301511,1765511437722,-500.0,0.0001129,2]
[398301512,1765511437731,-500.0,0.0001129,2]
[398301513,1765511437741,-500.0,0.0001129,2]
[398301514,1765511437751,-542.87846544,0.0001129,2]
[398301515,1765511437759,-500.0,0.0001129,2]
[398301516,1765511437768,-500.0,0.0001129,2]
[398301517,1765511437777,-126.29456491,0.0001129,2]
[398301518,1765511437788,-373.70543509,0.0001129,2]
[398301519,1765511437798,-10000.0,0.000115,2]
[398301520,1765511437807,-293.96295597,0.00011542,2]
[398301521,1765511437816,-529.13332075,0.00011542,2]
[398301522,1765511437826,-940.68145911,0.00011542,2]
[398301523,1765511437836,-241.98181511,0.00011542,2]
[398301677,1765511442769,-1227.83296475,0.00011542,2]
[398301678,1765511442779,-2116.53328299,0.00011542,2]
[398301679,1765511442789,-1820.46052181,0.00011542,2]
[398301690,1765511445744,-1057.49560974,0.00011542,2]
[398301691,1765511445754,-186.62221689,0.00011983,2]
[398301692,1765511445764,-129.52905644,0.00011989,2]
[398301693,1765511503869,150.0,6.594e-05,2]
[398301694,1765511504274,150.0,6.908e-05,2]
[398301695,1765511504698,150.0,7.222e-05,2]
[398301696,1765511517046,294.0,8.782e-05,2]
[398301724,1765512631750,-300.0,0.00010415,2]
[398301726,1765512631761,-400.77232797,0.00010416,2]
[398301728,1765512631771,-338.60439025,0.00010416,2]
[398301730,1765512631780,-609.48790245,0.00010416,2]
[398301732,1765512631789,-1083.5340488,0.00010416,2]
[398301734,1765512631798,-1693.02195124,0.00010416,2]
[398301736,1765512631808,-2437.95160979,0.00010416,2]
[398301738,1765512631817,-3315.00470141,0.00010416,2]
[398301740,1765512631827,-300.0,0.00010624,2]
[398301742,1765512631836,-300.0,0.00010624,2]
[398301744,1765512631846,-300.0,0.00010624,2]
[398301746,1765512631856,-300.0,0.00010624,2]
[398301748,1765512631865,-300.0,0.00010624,2]
[398301750,1765512631876,-300.0,0.00010624,2]
[398301752,1765512631886,-300.0,0.00010624,2]
[398301754,1765512631895,-300.0,0.00010624,2]
[398301756,1765512631904,-300.0,0.00010624,2]
[398301758,1765512631914,-300.0,0.00010624,2]
[398301760,1765512631923,-300.0,0.00010624,2]
[398301762,1765512631933,-300.0,0.00010624,2]
[398301764,1765512631942,-300.0,0.00010624,2]
[398301766,1765512631951,-300.0,0.00010624,2]
[398301768,1765512631961,-300.0,0.00010624,2]
[398301770,1765512631970,-20.91628076,0.00010624,2]
[398301821,1765512637868,-579.08371924,0.00010624,2]
[398301823,1765512637878,-300.0,0.00011452,2]
[398301825,1765512637887,-5319.89652536,0.000115,2]
[398301827,1765512637897,-4680.10347464,0.000115,2]
[398301829,1765512637907,-720.0,0.00011686,2]
[398301831,1765512637916,-2015.05721691,0.00011688,2]
[398301838,1765512638187,-500.0,0.00011889,2]
[398301839,1765512638232,-500.0,0.00011889,2]
[398301840,1765512638243,-442.55891178,0.00011889,2]
[398301841,1765512638254,-500.0,0.00011889,2]
[398301842,1765512638264,-500.0,0.00011889,2]
[398301843,1765512638277,-47.13816183,0.00011889,2]
[398301844,1765512638290,-452.86183817,0.00011889,2]
[398301845,1765512638299,-464.83102388,0.00011889,2]
[398301846,1765512638310,-230.42389802,0.00011889,2]
[398301847,1765512638319,-21414.58534374,0.0001189,2]
[398301848,1765512638330,-21015.40392329,0.0001189,2]
[398301849,1765512638343,-3291.06443375,0.0001189,2]
[398301852,1765512641558,-1086.86268639,0.0001189,2]
[398301853,1765512641570,-614.8492,0.0001189,2]
[398301862,1765512642924,-2000.0,0.0001189,2]
[398301863,1765512642985,-768.90923381,0.0001189,2]
[398301867,1765512645860,-391.50697925,0.0001189,2]
[398301868,1765512668742,150.0,6.951e-05,2]
[398301875,1765513315964,150.0,6.649e-05,2]
[398301917,1765513831899,-153.93,8.8e-05,2]
[398301918,1765513831909,-412.4735476,8.95e-05,2]
[398301919,1765513831918,-153.93,9.1e-05,2]
[398301920,1765513831928,-153.93,9.3e-05,2]
[398301921,1765513831939,-153.93,9.6e-05,2]
[398301922,1765513831950,-559.0,9.889e-05,2]
[398301923,1765513831960,-153.93,9.9e-05,2]
[398301924,1765513831969,-153.93,0.000102,2]
[398301925,1765513831979,-153.93,0.000104,2]
[398301926,1765513831990,-153.93,0.000107,2]
[398301927,1765513831999,-486.71878617,0.0001095,2]
[398301928,1765513832008,-286.5272212,0.00010959,2]
[398301929,1765513832018,-153.93,0.00011,2]
[398301930,1765513832028,-153.93,0.000113,2]
[398301931,1765513832037,-300.0,0.00011499,2]
[398301932,1765513832047,-300.0,0.00011499,2]
[398301933,1765513832056,-408.0,0.00011499,2]
[398301934,1765513832066,-10000.0,0.000115,2]
[398301935,1765513832075,-153.93,0.000115,2]
[398301936,1765513832084,-376.525,0.00011555,2]
[398301937,1765513832094,-191.05858825,0.00011607,2]
[398301938,1765513832103,-555.0,0.00011611,2]
[398301939,1765513832112,-155.2377433,0.00011611,2]
[398301940,1765513832122,-2773.56790519,0.00011611,2]
[398301941,1765513832131,-317.21276969,0.00011611,2]
[398301957,1765513838073,-4114.16,0.00011611,2]
[398301959,1765513838085,-15568.62723031,0.00011611,2]
[398301960,1765513838095,-2470.95094176,0.00011648,2]
[398301961,1765513838105,-500.0,0.00011689,2]
[398301962,1765513838115,-193.31348476,0.00011689,2]
[398301963,1765513838125,-500.0,0.00011689,2]
[398301964,1765513838134,-500.0,0.00011689,2]
[398301965,1765513838144,-500.0,0.00011689,2]
[398301966,1765513838154,-252.75745512,0.00011689,2]
[398301967,1765513838164,-2836.993426,0.0001169,2]
[398301968,1765513838175,-4404.5433117,0.0001169,2]
[398301969,1765513838187,-14792.26899724,0.0001169,2]
[398301970,1765513838199,-3484.07439681,0.0001169,2]
[398301998,1765513840241,-258.01307057,0.0001169,2]
[398302000,1765513840253,-1242.57155899,0.0001169,2]
[398302006,1765513840298,-1595.8,0.0001169,2]
[398302009,1765513840310,-6855.87471478,0.0001169,2]
[398302011,1765513840321,-1525.57541363,0.0001169,2]
[398302015,1765513840355,-25416.18009161,0.0001169,2]
[398302017,1765513840366,-594.4003059,0.0001169,2]
[398302064,1765513843114,-9640.72214699,0.0001169,2]
[398302065,1765513843172,-8384.43203038,0.0001169,2]
[398302066,1765513843183,-5062.5400021,0.0001169,2]
[398302071,1765513899453,150.0,6.794e-05,2]
[398302072,1765513899847,150.0,7.117e-05,2]
[398302073,1765513900247,150.0,7.441e-05,2]
[398302075,1765514207144,159.0,0.0001,30]
[398302135,1765515032234,-153.93,8.8e-05,2]
[398302136,1765515032243,-394.48970092,8.888e-05,2]
[398302137,1765515032253,-250.50327444,9.226e-05,2]
[398302138,1765515032263,-153.93,9.5e-05,2]
[398302139,1765515032273,-212.3051558,9.957e-05,2]
[398302140,1765515032283,-2000.0,9.999e-05,3]
[398302141,1765515032293,-153.93,0.000101,2]
[398302142,1765515032302,-153.93,0.000108,2]
[398302143,1765515032312,-465.49784709,0.00010888,2]
[398302145,1765515032321,-153.93,0.000114,2]
[398302147,1765515032331,-2470.95094176,0.00011481,2]
[398302149,1765515032340,-300.0,0.00011499,2]
[398302151,1765515032349,-10000.0,0.000115,2]
[398302152,1765515032359,-151.42632335,0.000115,2]
[398302153,1765515032635,-20000.0,0.00011542,2]
[398302154,1765515032667,-2773.56790519,0.00011542,2]
[398302155,1765515032677,-500.0,0.00011589,2]
[398302156,1765515032686,-500.0,0.00011589,2]
[398302157,1765515032696,-576.93021858,0.00011589,2]
[398302158,1765515032706,-4695.9550006,0.0001159,2]
[398302159,1765515038231,-555.0,0.00011542,2]
[398302160,1765515038241,-4079.27124687,0.0001159,2]
[398302705,1765515046205,-4209.49955301,0.0001159,2]
[398302793,1765515060148,150.0,6.94e-05,2]
[398302794,1765515060549,150.0,7.27e-05,2]
[398302795,1765515060939,150.0,7.601e-05,2]
[398302796,1765515061519,150.0,7.931e-05,2]
[398302797,1765515061926,150.0,8.262e-05,2]
[398302798,1765515062931,150.0,8.592e-05,2]
[398302799,1765515129359,150.0,7.361e-05,2]
[398302800,1765515129796,150.0,7.712e-05,2]
[398302832,1765516232247,-153.93,8.8e-05,2]
[398302833,1765516232259,-377.28994996,8.808e-05,2]
[398302834,1765516232271,-110.01282814,8.808e-05,2]
[398302835,1765516232285,-432.98717186,8.808e-05,2]
[398302836,1765516232296,-2000.0,9.998e-05,3]
[398302837,1765516232308,-153.93,0.000105,2]
[398302838,1765516232319,-300.0,0.00010549,2]
[398302839,1765516232330,-451.89726222,0.0001055,2]
[398302840,1765516232341,-126.61556592,0.0001055,2]
[398303245,1765516246428,-604.017359,0.0001055,2]
[398303250,1765517231390,1446.0712391,8.593e-05,2]
[398303251,1765517233672,2257.22682479,8.593e-05,2]
[398303252,1765517394445,210.60828893,8.593e-05,2]
[398303253,1765517396500,240.69518735,8.593e-05,2]
[398303254,1765517398716,119.21628768,8.593e-05,2]
[398303255,1765517398737,256.49385633,8.593e-05,2]
[398303268,1765517432432,-155.76,8.8e-05,2]
[398303269,1765517432442,-544.0,8.861e-05,2]
[398303270,1765517432452,-369.74415096,8.861e-05,2]
[398303271,1765517432464,-443.65176873,9.045e-05,2]
[398303272,1765517432473,-192.0,9.224e-05,2]
[398303273,1765517432482,-300.0,9.224e-05,2]
[398303274,1765517432491,-300.0,9.225e-05,2]
[398303275,1765517432501,-300.0,9.225e-05,2]
[398303276,1765517432511,-300.0,9.225e-05,2]
[398303277,1765517432520,-300.0,9.225e-05,2]
[398303278,1765517432531,-300.0,9.225e-05,2]
[398303279,1765517432542,-300.0,9.225e-05,2]
[398303280,1765517432551,-300.0,9.225e-05,2]
[398303281,1765517432560,-300.0,9.225e-05,2]
[398303282,1765517432569,-300.0,9.225e-05,2]
[398303283,1765517432578,-300.0,9.225e-05,2]
[398303284,1765517432587,-300.0,9.225e-05,2]
[398303285,1765517432596,-300.0,9.225e-05,2]
[398303286,1765517432606,-300.0,9.225e-05,2]
[398303287,1765517432615,-300.0,9.225e-05,2]
[398303288,1765517432626,-300.0,9.225e-05,2]
[398303289,1765517432635,-600.0,9.408e-05,2]
[398303290,1765517432645,-2000.0,9.997e-05,3]
[398303291,1765517432654,-200.07814968,0.00010022,2]
[398303292,1765517432665,-359.78052875,0.00010022,2]
[398303293,1765517432675,-420.0,0.00010146,2]
[398303294,1765517432684,-720.0,0.00010349,2]
[398303295,1765517432693,-2000.0,0.00010549,2]
[398303296,1765517432702,-1559.16349207,0.00010738,2]
[398303297,1765517432711,-436.29809814,0.00010861,2]
[398303298,1765517432720,-180.0,0.00011161,2]
[398303299,1765517432730,-1559.16349208,0.00011179,2]
[398303300,1765517432739,-255.0,0.00011326,2]
[398303301,1765517432748,-2773.56790519,0.00011326,2]
[398303302,1765517432757,-14733.23830394,0.00011326,2]
[398303303,1765517432766,-500.0,0.00011384,2]
[398303304,1765517432775,-574.12855637,0.00011384,2]
[398303305,1765517432784,-500.0,0.00011384,2]
[398303306,1765517432793,-500.0,0.00011384,2]
[398303307,1765517432803,-500.0,0.00011384,2]
[398303308,1765517432812,-500.0,0.00011384,2]
[398303309,1765517432821,-500.0,0.00011384,2]
[398303310,1765517432831,-500.0,0.00011384,2]
[398303311,1765517432840,-629.41104555,0.00011384,2]
[398303312,1765517432849,-1018.46017042,0.00011384,2]
[398303313,1765517432858,-864.0,0.00011384,2]
[398303314,1765517432867,-26001.17513663,0.0001139,2]
[398303316,1765517438514,-1069.1624148,0.0001139,2]
[398303317,1765517438526,-4281.25880143,0.0001139,2]
[398303318,1765517438572,-498.8032675,0.0001139,2]
[398303342,1765517446483,-603.85115301,0.00011389,2]
[398303343,1765517446493,-500.0,0.00011389,2]
[398303344,1765517446504,-151.38007762,0.0001139,2]
[398303350,1765517456556,150.0,7.476e-05,2]
[398303351,1765517456987,150.0,7.832e-05,2]
[398303376,1765518631587,-157.59,8.8e-05,2]
[398303377,1765518631597,-353.62330598,8.906e-05,2]
[398303378,1765518631608,-506.19310219,9.012e-05,2]
[398303379,1765518631620,-39.80689781,9.012e-05,2]
[398303380,1765518631630,-325.50307842,9.791e-05,2]
[398303398,1765518637800,-772.10094707,9.791e-05,2]
[398303399,1765518637911,-1081.68447611,9.791e-05,2]
[398303400,1765518637922,-2000.0,9.996e-05,3]
[398303401,1765518637932,-293.22316872,0.00010279,2]
[398303402,1765518637942,-457.70303992,0.00010279,2]
[398303403,1765518637952,-697.98013019,0.00010305,2]
[398303404,1765518637963,-4470.73353841,0.00010305,2]
[398303406,1765518637972,-256.57027263,0.00010417,2]
[398303407,1765518637983,-300.0,0.00010499,2]
[398303408,1765518637993,-157.59,0.000105,2]
[398303409,1765518638003,-300.0,0.00010709,2]
[398303410,1765518638012,-300.0,0.00010709,2]
[398303411,1765518638021,-300.0,0.00010709,2]
[398303412,1765518638031,-300.0,0.00010709,2]
[398303413,1765518638040,-300.0,0.00010709,2]
[398303414,1765518638050,-300.0,0.00010709,2]
[398303415,1765518638064,-300.0,0.00010709,2]
[398303416,1765518638074,-300.0,0.00010709,2]
[398303417,1765518638084,-294.78867774,0.00010709,2]
[398303429,1765518639973,-5.21132226,0.00010709,2]
[398303430,1765518639983,-300.0,0.00010709,2]
[398303431,1765518639993,-300.0,0.00010709,2]
[398303432,1765518640002,-300.0,0.00010709,2]
[398303433,1765518640013,-300.0,0.00010709,2]
[398303434,1765518640023,-147.21365342,0.00010709,2]
[398303467,1765518645758,-152.78634658,0.00010709,2]
[398303469,1765518645768,-300.0,0.00010709,2]
[398303471,1765518645777,-417.27550106,0.00010906,2]
[398303473,1765518645787,-4085.0789853,0.00011084,2]
[398303475,1765518645796,-3545.8662835,0.00011084,2]
[398303477,1765518645806,-2773.56790519,0.00011284,2]
[398303479,1765518645815,-574.12855637,0.00011284,2]
[398303481,1765518645823,-255.0,0.00011284,2]
[398303483,1765518645832,-500.0,0.00011289,2]
[398303485,1765518645841,-272.69580711,0.00011289,2]
[398303487,1765518645851,-26384.70712371,0.0001129,2]
[398303489,1765518645862,-608.11491716,0.0001129,2]
[398303718,1765519837897,-157.59,8.8e-05,2]
[398303720,1765519837907,-338.20532984,9.099e-05,2]
[398303722,1765519837917,-291.62420166,0.00010274,2]
[398303724,1765519837927,-301.22,0.00010967,2]
[398303726,1765519837936,-806.8671743,0.0001109,2]
[398303728,1765519837947,-3404.79381245,0.0001109,2]
[398303858,1765519840157,-359.50100004,0.0001109,2]
[398304330,1765519845881,-159.63395879,0.00010463,2]
[398304331,1765519845891,-651.82375233,0.0001109,2]
[398304365,1765519847899,150.0,6.6e-05,2]
[398304366,1765519848365,150.0,6.914e-05,2]
[398304367,1765519848781,150.0,7.229e-05,2]
[398304368,1765519849191,150.0,7.543e-05,2]
[398304369,1765519849591,150.0,7.857e-05,2]
[398304370,1765519849981,150.0,8.172e-05,2]
[398304371,1765519850394,169.03,8.486e-05,2]
[398304372,1765519918707,150.0,6.674e-05,2]
[398304373,1765519919075,150.0,6.992e-05,2]
[398304374,1765519919523,150.0,7.31e-05,2]
[398304375,1765519920273,150.0,7.628e-05,2]
[398304376,1765519920320,150.0,7.945e-05,2]
[398304395,1765521031951,-331.44122324,8.8e-05,2]
[398304396,1765521031961,-158.51,8.8e-05,2]
[398304397,1765521031971,-543.0,8.8e-05,2]
[398304398,1765521031981,-158.5,8.8e-05,2]
[398304399,1765521031990,-155.02844612,9.277e-05,2]
[398304400,1765521031999,-1200.0,0.00010221,2]
[398304401,1765521032009,-300.0,0.00010221,2]
[398304403,1765521032018,-170.0,0.00010221,2]
[398304405,1765521032028,-1200.0,0.00010221,2]
[398304407,1765521032037,-424.58435637,0.00010222,2]
[398304409,1765521032046,-764.25184146,0.00010222,2]
[398304411,1765521032055,-1358.66994038,0.00010222,2]
[398304413,1765521032066,-2120.79886006,0.00010222,2]
[398304414,1765521032075,-300.0,0.00010425,2]
[398304415,1765521032085,-300.0,0.00010425,2]
[398304416,1765521032094,-300.0,0.00010425,2]
[398304417,1765521032104,-300.0,0.00010425,2]
[398304418,1765521032114,-300.0,0.00010425,2]
[398304419,1765521032123,-300.0,0.00010425,2]
[398304420,1765521032134,-300.0,0.00010425,2]
[398304421,1765521032144,-300.0,0.00010425,2]
[398304422,1765521032154,-300.0,0.00010425,2]
[398304423,1765521032163,-300.0,0.00010425,2]
[398304424,1765521032172,-300.0,0.00010425,2]
[398304425,1765521032182,-300.0,0.00010425,2]
[398304426,1765521032192,-300.0,0.00010425,2]
[398304427,1765521032202,-300.0,0.00010425,2]
[398304428,1765521032211,-300.0,0.00010425,2]
[398304429,1765521032220,-238.38148111,0.00010481,2]
[398304430,1765521032229,-391.10064343,0.000108,2]
[398304431,1765521032238,-397.715535,0.000108,2]
[398304432,1765521032248,-397.715535,0.000108,2]
[398304433,1765521032257,-397.5795005,0.000108,2]